Cogmind - Beta 10.1 @@@ ROGUE MODE // 2020.10.07 @ 02:30:34 Player: Tmvn Result: Destroyed by as-15344 with Assembled F-torch Performance ------------- Evolutions (0) 0 Regions Visited (4) 800 Robots Destroyed (27) 135 Value Destroyed (631) 631 Prototype IDs (25) 500 Alien Tech Used (0) 0 Bonus (300) 300 TOTAL SCORE: 2366 Bonus ------- Aligned with FarCom 300 Cogmind --------- Core Integrity 0/250 Matter 164/300 Energy 241/250 System Corruption 3% Temperature Cool (22) Movement Walking (120) Location -9/Mines Parts ------- > --- POWER (1) -------- Ion Engine > --- PROPULSION (2) --- Aluminum Leg Aluminum Leg > --- UTILITY (2) ------ Small Storage Unit Cloak of Protection > --- WEAPON (2) ------- Small Laser Light Assault Rifle > --- INVENTORY (6) ---- Light Ion Engine Light Ion Engine Aluminum Leg Wheel Compact Wheel Peak State ------------ > --- POWER ------------ Ion Engine > --- PROPULSION ------- Aluminum Leg Aluminum Leg > --- UTILITY ---------- Small Storage Unit Cloak of Protection > --- WEAPON ----------- Small Laser Beam Cannon > --- INVENTORY -------- Light Ion Engine Light Ion Engine Aluminum Leg Wheel Compact Wheel Light Assault Rifle [Rating: 14] Favorites ----------- Power Ion Engine Engine Ion Engine Propulsion Aluminum Leg Leg Aluminum Leg Utility Small Storage Unit Device Cloak of Protection Storage Small Storage Unit Processor Signal Interpreter Weapon Light Cannon Energy Gun Small Laser Energy Cannon Beam Cannon Ballistic Gun Assault Rifle Ballistic Cannon Light Cannon Build | -11 -10 -10 -10 -9 ------- Run | Scr Mat Min Exi Min Slots Evolved . | . . . . . Power . | . . . . . Propulsion . | . . . . . Utility . | . . . . . Weapon . | . . . . . Parts Attached 21 | . 19 . 1 1 Power 5 | . 5 . . . Engine 5 | . 5 . . . Core . | . . . . . Reactor . | . . . . . Propulsion 4 | . 4 . . . Treads . | . . . . . Leg 4 | . 4 . . . Wheel . | . . . . . Hover . | . . . . . Flight . | . . . . . Utility 4 | . 3 . 1 . Device 1 | . . . 1 . Storage 1 | . 1 . . . Processor 2 | . 2 . . . Hackware . | . . . . . Protection . | . . . . . Artifact . | . . . . . Weapon 8 | . 7 . . 1 Energy Gun 3 | . 3 . . . Energy Cannon 1 | . 1 . . . Ballistic Gun 2 | . 1 . . 1 Ballistic Cannon 2 | . 2 . . . Launcher . | . . . . . Special Weapon . | . . . . . Impact Weapon . | . . . . . Slashing Weapon . | . . . . . Piercing Weapon . | . . . . . Special Melee Weapon . | . . . . . Unidentified Prototypes . | . . . . . Parts Lost 4 | . 3 . . 1 Power . | . . . . . Propulsion 1 | . 1 . . . Utility . | . . . . . Weapon 3 | . 2 . . 1 Highest Loss Streak 2 | . 2 . . 1 Average Slot Usage (%) 96 | . 95 100 100 100 Engine 14 | . 14 14 14 14 Leg 27 | . 27 28 28 28 Device 2 | . . . 8 14 Storage 14 | . 14 14 14 14 Processor 9 | . 10 14 5 . Energy Gun 7 | . 4 14 14 14 Energy Cannon 8 | . 6 14 14 . Ballistic Gun 1 | . 1 . . 14 Ballistic Cannon 9 | . 14 . . . Naked Turns . | . . . . . Heaviest Build 21 | 11 15 13 21 21 Greatest Support 20 | 20 20 20 20 20 Greatest Overweight (x) 1 | . 1 . 1 1 Average Overweight (x) . | . . . . . Largest Inventory Capacity 6 | . 6 6 6 6 Average Capacity 6 | . 6 6 6 6 Most Carried 6 | . 6 6 6 6 Average Carried 5 | . 5 6 6 5 Final Capacity 6 | 6 6 6 6 6 Final Carried 6 | 6 6 6 6 5 Class Distribution -------------------- 62% | Mutant 37% | Scavenger-Mutant Dominant Class ---------------- Mutant | -10/Materials Scavenger-Mutant | -10/Mines Scavenger-Mutant | -10/Exiles Scavenger-Mutant | -9/Mines Resources | -11 -10 -10 -10 -9 ----------- Run | Scr Mat Min Exi Min Matter Collected 626 | 196 430 . . . Remotely . | . . . . . Salvage Created 649 | . 634 . . 15 Parts 39 | . 39 . . . Haulers Intercepted . | . . . . . Recyclers Shooed 2 | . 2 . . . Parts Field Recycled . | . . . . . Retrieved Matter . | . . . . . Parts Self-Destructed . | . . . . . Prevented . | . . . . . Kills | -11 -10 -10 -10 -9 ------- Run | Scr Mat Min Exi Min Combat Hostiles Destroyed 25 | . 24 . . 1 Guns 6 | . 5 . . 1 Cannons 18 | . 18 . . . AOE 1 | . 1 . . . Classes Destroyed 5 | . 4 . . 1 Builder 1 | . 1 . . . Operator 1 | . 1 . . . Swarmer 9 | . 9 . . . Grunt 15 | . 15 . . . Assembled 1 | . . . . 1 Best Kill Streak 5 | . 5 . . 1 Combat Bots Only 5 | . 5 . . 1 Max Kills in Single Turn 1 | . 1 . . 1 Gunslinging . | . . . . . Exploded 1 | . 1 . . . Melee . | . . . . . Uniques/NPCs Destroyed . | . . . . . Combat | -11 -10 -10 -10 -9 -------- Run | Scr Mat Min Exi Min Damage Taken 1136 | . 1017 . . 119 Core 259 | . 248 . . 11 Absorbed by Shields . | . . . . . Core Remaining (%) 100 | 100 . . . . Volleys Fired 73 | . 67 . . 6 Largest 2 | . 2 . . 2 Hottest 100 | . 100 . . 60 Shots Fired 140 | . 128 . . 12 Gun 41 | . 29 . . 12 Cannon 99 | . 99 . . . Launcher . | . . . . . Special . | . . . . . Kinetic 100 | . 94 . . 6 Thermal 31 | . 25 . . 6 Explosive . | . . . . . Electromagnetic 9 | . 9 . . . Robot Hit Streak 8 | . 8 . . 5 Robot Miss Streak 4 | . 4 . . 2 Penetration Max . | . . . . . Secondary Targets . | . . . . . Shots Hit Robots 83 | . 75 . . 8 Core Hits 33 | . 29 . . 4 Critical Hits 2 | . 2 . . . Critical Kills 1 | . 1 . . . Critical Parts Destroyed 1 | . 1 . . . Melee Attacks . | . . . . . Impact . | . . . . . Slashing . | . . . . . Piercing . | . . . . . Sneak Attacks . | . . . . . Combat Hostiles . | . . . . . Follow-up Attacks . | . . . . . Damage Inflicted 1318 | . 1260 . . 58 Guns 310 | . 252 . . 58 Cannons 949 | . 949 . . . Explosions 54 | . 54 . . . Melee . | . . . . . Ramming 5 | . 5 . . . Kinetic 890 | . 864 . . 26 Thermal 320 | . 288 . . 32 Explosive . | . . . . . Electromagnetic 103 | . 103 . . . Impact . | . . . . . Slashing . | . . . . . Piercing . | . . . . . Highest Corruption 3 | . 1 1 1 3 Average Corruption 1 | . 1 1 1 2 Corruption Purged . | . . . . . Effects 5 | . 4 . 1 . Message Errors 3 | . 2 . 1 . Targeting Errors 1 | . 1 . . . Weapon Failures 1 | . 1 . . . Overload Shots . | . . . . . Overflow Damage 13 | . 13 . . . Projectiles 13 | . 13 . . . Explosions . | . . . . . Melee . | . . . . . Knockbacks 13 | . 13 . . . Impact . | . . . . . Kinetic 11 | . 11 . . . Secondary 2 | . 2 . . . Self-Inflicted Damage . | . . . . . Shots . | . . . . . Rammed . | . . . . . Targets Rammed 2 | . 2 . . . Kicked 2 | . 2 . . . Crushed . | . . . . . Highest Temperature 261 | . 261 . . 40 Average Temperature 76 | . 80 . . 15 Received Heat Transfer 422 | . 402 . . 20 Effects 1 | . 1 . . . Interference 1 | . 1 . . . Siege Activations . | . . . . . Robots Corrupted . | . . . . . Combat Hostiles . | . . . . . Parts Fried 1 | . 1 . . . Impact Corruptions . | . . . . . Robots Melted . | . . . . . Combat Hostiles . | . . . . . Parts Melted . | . . . . . Heat Transferred 683 | . 608 . . 75 Parts Sabotaged . | . . . . . Parts Stolen . | . . . . . Parts Stripped . | . . . . . Power Chain Reactions 1 | . 1 . . . Missiles Intercepted . | . . . . . Alert | -11 -10 -10 -10 -9 ------- Run | Scr Mat Min Exi Min Peak Influence 364 | . 364 79 . . Initial 79 | . . 79 . . Average 184 | . 194 79 . . Maximum Alert Level 1 | . 1 . . . Low Security (%) 57 | . 54 100 . 100 Level 1 42 | . 45 . . . Level 2 . | . . . . . Level 3 . | . . . . . Level 4 . | . . . . . Level 5 . | . . . . . High Security . | . . . . . Max Security . | . . . . . Squads Dispatched 7 | . 7 . . . Investigation 5 | . 5 . . . Extermination . | . . . . . Reinforcement 2 | . 2 . . . Assault . | . . . . . Garrison . | . . . . . Intercept . | . . . . . Construction Impeded . | . . . . . Haulers Reinforced . | . . . . . Stealth | -11 -10 -10 -10 -9 --------- Run | Scr Mat Min Exi Min Distress Signals 3 | . 3 . . . Communications Jammed . | . . . . . Distress Signals . | . . . . . Times Spotted 53 | . 43 . . 10 Peak Tracking Total 19 | . 7 . . 19 Tactical Retreats 1 | . 1 . . . Traps | -11 -10 -10 -10 -9 ------- Run | Scr Mat Min Exi Min Traps Triggered 2 | . 2 . . . Indirectly . | . . . . . Trap Hack Attempts . | . . . . . Triggered . | . . . . . Disarmed . | . . . . . Reprogrammed . | . . . . . Reused . | . . . . . Traps Extracted . | . . . . . Installed . | . . . . . Triggered . | . . . . . Machines | -11 -10 -10 -10 -9 ---------- Run | Scr Mat Min Exi Min Machines Disabled 1 | . 1 . . . Max in Single Turn 1 | . 1 . . . Machines Sabotaged . | . . . . . Garrisons Compromised . | . . . . . Overloaded Fab Kills . | . . . . . Fab Network Shutdowns . | . . . . . Hacking | -11 -10 -10 -10 -9 --------- Run | Scr Mat Min Exi Min Machines Accessed 11 | . 8 1 2 . Terminals 7 | . 6 1 . . Fabricators . | . . . . . Repair Stations . | . . . . . Recycling Units 2 | . 2 . . . Scanalyzers . | . . . . . Garrison Access . | . . . . . Total Hacks 32 | . 20 2 10 . Successful 22 | . 10 2 10 . Failed 10 | . 10 . . . Catastrophic 3 | . 3 . . . Database Lockouts . | . . . . . Manual 18 | . 16 1 1 . Terminals 20 | . 18 2 . . Fabricators . | . . . . . Repair Stations . | . . . . . Recycling Units 2 | . 2 . . . Scanalyzers . | . . . . . Garrison Access . | . . . . . Terminal Hacks 18 | . 6 2 10 . Record 9 | . . . 9 . Robot Analysis 1 | . 1 . . . Prototype ID Bank 1 | . 1 . . . Alert Level 2 | . 1 1 . . Unreport Threat 2 | . 2 . . . Locate Traps 1 | . 1 . . . Zone Layout 1 | . . 1 . . EX-Prototype ID Bank 1 | . . . 1 . Fabricator Hacks . | . . . . . Repair Station Hacks . | . . . . . Recycling Unit Hacks . | . . . . . Scanalyzer . | . . . . . Garrison Access Hacks . | . . . . . Unauthorized Hacks 4 | . 4 . . . Terminals 2 | . 2 . . . Track 1 | . 1 . . . Operators 1 | . 1 . . . Fabricators . | . . . . . Repair Stations . | . . . . . Recycling Units 2 | . 2 . . . Tunnel 2 | . 2 . . . Scanalyzers . | . . . . . Garrison Access . | . . . . . Data Cores Recovered . | . . . . . Used . | . . . . . Hacking Detections 6 | . 6 . . . Full Trace Events 2 | . 2 . . . Feedback Events 1 | . 1 . . . Corruption 1 | . 1 . . . Feedback Blocked . | . . . . . Robot Schematics Acquired . | . . . . . Robots Built . | . . . . . Matter . | . . . . . Time . | . . . . . Total Robot Build Rating . | . . . . . Part Schematics Acquired . | . . . . . Parts Built . | . . . . . Matter . | . . . . . Time . | . . . . . Total Part Build Rating . | . . . . . Parts Repaired . | . . . . . Time . | . . . . . Parts Recycled . | . . . . . Recycled Matter . | . . . . . Retrieved Matter . | . . . . . Retrieved Components . | . . . . . Parts Scanalyzed . | . . . . . Part Schematics Acquired . | . . . . . Parts Damaged . | . . . . . Bothacking | -11 -10 -10 -10 -9 ------------ Run | Scr Mat Min Exi Min Used RIF Installer . | . . . . . Robots Hacked . | . . . . . Non-combat . | . . . . . Combat . | . . . . . Robot Hacks Applied . | . . . . . Relay Couplers Released . | . . . . . Robots Rewired . | . . . . . Allies Hacked . | . . . . . Hacks Repelled . | . . . . . Allies | -11 -10 -10 -10 -9 -------- Run | Scr Mat Min Exi Min Total Allies . | . . . . . Largest Group . | . . . . . Highest-Rated Group . | . . . . . Highest-Rated Ally . | . . . . . Total Orders . | . . . . . Ally Attacks . | . . . . . Total Damage . | . . . . . Kills . | . . . . . Allies Corrupted . | . . . . . Allies Melted . | . . . . . Intel | -11 -10 -10 -10 -9 ------- Run | Scr Mat Min Exi Min Robot Analysis Total 1 | . 1 . . . Derelict Logs Recovered 1 | . . 1 . . Drone Launches . | . . . . . Drone Recoveries . | . . . . . Exploration | -11 -10 -10 -10 -9 ------------- Run | Scr Mat Min Exi Min Turns Passed 1513 | . 1047 59 385 22 Spaces Moved 999 | 1 671 50 273 4 Core . | . . . . . Treads . | . . . . . Legs 999 | 1 671 50 273 4 Wheels . | . . . . . Hover . | . . . . . Flight . | . . . . . Fastest Speed 120 | 120 120 120 120 120 Average Speed 124 | 120 120 120 136 135 Slowest Speed 150 | 120 150 120 150 150 Overloaded Moves . | . . . . . Propulsion Burnouts . | . . . . . Robots Hopped . | . . . . . Cave-ins Triggered . | . . . . . Exploration Rate (%) 35 | 2 96 12 62 4 Regions Visited 4 Branch Regions 3 Pre-discovered Areas 3 | . 2 1 . . Known Exits Taken 2 | . 1 1 . . Unknown Exits Taken 2 | 1 . . 1 . Scrap Searched . | . . . . . Spaces Dug . | . . . . . Terrain Destroyed 3 | . 3 . . . Melee . | . . . . . Projectile . | . . . . . AOE 3 | . 3 . . . Terrain Rammed . | . . . . . Walls Destroyed . | . . . . . Machines Disabled . | . . . . . Actions | -11 -10 -10 -10 -9 --------- Run | Scr Mat Min Exi Min Total 1134 | . 786 49 287 12 Wait 24 | . 10 . 13 1 Move 995 | . 670 49 272 4 Hop . | . . . . . Pick Up 2 | . 2 . . . Fast Attach 7 | . 6 . 1 . Attach 2 | . 1 . . 1 Detach 2 | . 1 . 1 . Swap 12 | . 12 . . . Drop 15 | . 15 . . . Fire 73 | . 67 . . 6 Melee . | . . . . . Ram . | . . . . . Kick 2 | . 2 . . . Crush . | . . . . . Escape Stasis . | . . . . . Rewire . | . . . . . Trap . | . . . . . Miscellaneous . | . . . . . Route ------- -11/Scrapyard -10/Materials (discovered 5 exits: *Mat x3 / *Min x2) -10/Mines -10/Exiles -9/Mines History --------- Turn | Location | Event 1 | -11/Scrapyard | Discovered new exit (range 0) 1 | -11/Scrapyard | Entered Materials 236 | -10/Materials | Discovered new exit (range 12) 302 | -10/Materials | Build established: Mutant 320 | -10/Materials | Discovered new exit (range 3) 403 | -10/Materials | Discovered new exit (range 15) 523 | -10/Materials | Core integrity fell below 50% 541 | -10/Materials | Core integrity fell below 20% 587 | -10/Materials | Discovered new exit (range 16) 680 | -10/Materials | Identified exit to Materials 862 | -10/Materials | Discovered exit to Materials (range 16) 1047 | -10/Materials | Identified exit to Mines 1048 | -10/Materials | Entered Mines 1055 | -10/Mines | Met a Derelict bent on vengeance 1082 | -10/Mines | Learned location of Recycling (-8) 1102 | -10/Mines | Deemed a non-threat by the Exiles lab entrance 1102 | -10/Mines | Discovered new exit (range 5) 1106 | -10/Mines | Identified exit to Exiles 1107 | -10/Mines | Entered Exiles 1140 | -10/Exiles | Met 8R-AWN 1157 | -10/Exiles | Met EX-HEX 1189 | -10/Exiles | Met EX-BIN 1220 | -10/Exiles | Aligned with FarCom system 1221 | -10/Exiles | Given EX-Vault access code 1231 | -10/Exiles | Build established: Scavenger-Mutant 1251 | -10/Exiles | Opened EX-Vault 1260 | -10/Exiles | Found Cloak of Protection 1308 | -10/Exiles | Warned to stay clear of 0b10 Research branches 1325 | -10/Exiles | Exiles lab attacked by MAIN.C 1479 | -10/Exiles | Discovered new exit (range 10) 1492 | -10/Exiles | Left Exiles lab with Cloak of Protection 1492 | -10/Exiles | Entered Mines 1493 | -9/Mines | Assembled infested the area 1514 | -9/Mines | Destroyed by as-15344 with Assembled F-torch Last Messages --------------- go go go take the back way out!" 01437_ Slug penetrates 8R-AWN. 01479_ EXIT=FOUND LOCATION=UNKNOWN GOAL=ESCAPE 01492_ Receiving FarCom transmissions... 01493_ ALERT: Infestation in the mines, dispatching Demolisher response squad. 01493_ ZX-C33: "That was close. Too bad in all the rush we got split up from the others." 01494_ Beam Cannon destroyed. 01494_ System corrupted by crushing effect (+2). 01497_ as-34093 destroyed. 01502_ Knocked back. 01508_ ZX-C33: "Oh no, it's like what happened to the Exiles when they were wandering homeless, only there's no Warlord to save us!" 01508_ as-99094 destroyed. 01513_ C-30 ARC bursts open, deploying its payload. 01513_ D-53 Grenadier unfolds itself. 01513_ as-50295 destroyed. Map ----- +----------------------------------------------------+ | ?????????????????????????????????????????????????? | | ?????????????????????????????????????????????????? | | ?????????????????????????????????????????????????? | | ?????????????????????????????????????????????????? | | ?????????????????????????????????????????????????? | | ?????????????????????????????????????????????????? | | ?????????????????????????????????????????????????? | | ?????????????????????????????????????????????????? | | ?????????????????????????????????????????????????? | | ?????????????????????????????????????????????????? | | ?????????????????????????????????????????????????? | | ?????????????????????????????????????????????????? | | ?????????????????????????????????????????????????? | | ?????????????????????????????????????????????????? | | ?????????????????????????????????????????????????? | | ?????????????????????????????????????????????????? | | ?????????????????????????????????????????????????? | | ?????????????????????????????????????????????????? | | ?????????????????????????????????????????????????? | | ?????????????????????????????????????????????????? | | ?????????????????????????????????????????????????? | | ?????????????????????????????????????????????????? | | ???????????????#???###???????????????????????????? | | ???????????????# ## ####???????????????????????? | | ???????????????# ##??????????????????????? | | ???????????????# @##### #????????????????? | | ???????????????##### %aa #????????????????? | | ???????????????????### z#######????????????????? | | ?????????????????????### #??????????????????????? | | ???????????????????????# #??????????????????????? | | ???????????????????????# #??????????????????????? | | ???????????????????????# #??????????????????????? | | ???????????????????????# #??????????????????????? | | ???????????????????????# #??????????????????????? | | ???????????????????????# #??????????????????????? | | ???????????????????????#d #??????????????????????? | | ???????????????????????# #?Y???Y????????????????? | | ???????????????????????#d ???????????????????????? | | ??????????????????????? ???????????????????????? | | ??????????????????????? ???????????????????????? | | ???????????????????????###???????????????????????? | | ?????????????????????????????????????????????????? | | ?????????????????????????????????????????????????? | | ?????????????????????????????????????????????????? | | ?????????????????????????????????????????????????? | | ?????????????????????????????????????????????????? | | ?????????????????????????????????????????????????? | | ?????????????????????????????????????????????????? | | ?????????????????????????????????????????????????? | | ?????????????????????????????????????????????????? | +----------------------------------------------------+ Best States ------------- Heat Dissipation 25 Energy Generation 10 Energy Capacity 250 Matter Stores 300 Matter Capacity 300 Sight Range 16 Terrain Scan Density 10 Cloak Strength 5 Evasion (%) 40 Targeting Accuracy 5 Item Schematics ----------------- None Robot Schematics ------------------ None Fabricated ------------ Nothing Alien Tech Used ----------------- None Achievements -------------- None Challenges ------------ None Game ------ Seed TargetRecoilWings Manual? 0 Play Time 00:16:46 Cumulative 47.5 hours Start 2020.10.07 @ 01:52:17 End 2020.10.07 @ 02:30:34 Sessions 1 Manual Loads 0 Difficulty Rogue Special Mode None Game No. 87 Rogue 87 Adventurer 0 Explorer 0 Win Type - Total 0 Types 0/0/0/0/0/0/0/0/0 Lore% 28 Gallery% 43 Achievement% 30 Wizard Run 0 Options --------- ASCII 1 Keyboard 1 Movement Vi Keybinds 0 Fullscreen 1 Font 24/Proggy Map View 76x50 Tactical HUD 1 Map Filters SATURATION(70) Filters SATURATION(65)|SHIFT_HUE(15) Steam 1 RUN: a8585e8b-f07e-40b0-b573-4946076cfef7